fUSD/lending_fUSD_20250124
["ID","MTS","AMOUNT","RATE_DAILY","PERIOD"]
[350238438,1737727831714,-194.23,0.0001695,2]
[350238439,1737727831724,-8234.0990609,0.00016973,2]
[350238440,1737727831734,-600.0,0.00017,2]
[350238442,1737727831745,-1563.04,0.00017026,2]
[350238444,1737727831754,-480.9,0.00017073,2]
[350238446,1737727831764,-500.0,0.00017118,2]
[350238447,1737727831774,-1000.0,0.00017131,2]
[350238448,1737727831784,-242.12,0.00017245,2]
[350238449,1737727831793,-250.0,0.00017331,2]
[350238451,1737727831802,-500.0,0.00017331,2]
[350238452,1737727831812,-187.45,0.00017355,2]
[350238453,1737727831822,-774.15,0.00017377,2]
[350238454,1737727831831,-208.81,0.00017406,2]
[350238455,1737727831841,-200.0,0.00017424,2]
[350238456,1737727831851,-250.0,0.00017424,2]
[350238457,1737727831861,-177.09,0.00017527,2]
[350238458,1737727831870,-170.92,0.00017599,2]
[350238459,1737727831880,-250.0,0.00017638,2]
[350238460,1737727831890,-23900.0,0.00017704,2]
[350238461,1737727831900,-1381.87,0.00017728,2]
[350238462,1737727831909,-730.68,0.00017728,2]
[350238463,1737727831919,-150.99,0.00017728,2]
[350238464,1737727831929,-414.0,0.00017999,2]
[350238465,1737727831938,-3000.0,0.00018,7]
[350238466,1737727831948,-275.635,0.00018024,2]
[350238467,1737727831957,-252.04,0.00018068,2]
[350238468,1737727831966,-245.91,0.00018068,2]
[350238469,1737727831976,-800.0,0.00018068,2]
[350238470,1737727831985,-500.0,0.00018068,2]
[350238471,1737727831994,-168.44,0.00018082,2]
[350238472,1737727832003,-1693.0,0.000181,2]
[350238473,1737727832013,-254.01,0.00018152,2]
[350238474,1737727832022,-245.03,0.00018152,2]
[350238475,1737727832031,-251.58,0.00018244,2]
[350238476,1737727832040,-1086.51808981,0.00018244,2]
[350238477,1737727832050,-1106.49744822,0.00018244,2]
[350238478,1737727832225,-270.25148504,0.00018326,2]
[350238479,1737727832235,-270.25148504,0.00018396,2]
[350238480,1737727832244,-270.25148504,0.00018404,2]
[350238481,1737727832254,-270.25148504,0.00018445,2]
[350238482,1737727832264,-270.25148504,0.00018464,2]
[350238483,1737727832273,-246.27,0.00018502,2]
[350238484,1737727832283,-220.47423495,0.00018502,2]
[350238485,1737727832292,-187.45,0.00018512,2]
[350238486,1737727832302,-245.09,0.00018602,2]
[350238487,1737727832312,-500.0,0.00018602,2]
[350238488,1737727832321,-500.0,0.00018602,2]
[350238489,1737727832331,-500.0,0.00018602,2]
[350238490,1737727832341,-500.0,0.00018602,2]
[350238491,1737727832350,-500.0,0.00018602,2]
[350238492,1737727832360,-500.0,0.00018602,2]
[350238493,1737727832369,-500.0,0.00018602,2]
[350238494,1737727832379,-500.0,0.00018602,2]
[350238496,1737727832388,-500.0,0.00018602,2]
[350238498,1737727832397,-500.0,0.00018602,2]
[350238500,1737727832407,-500.0,0.00018602,2]
[350238502,1737727832416,-500.0,0.00018602,2]
[350238504,1737727832426,-500.0,0.00018602,2]
[350238506,1737727832436,-500.0,0.00018602,2]
[350238508,1737727832445,-500.0,0.00018602,2]
[350238510,1737727832455,-502.26365941,0.00018602,2]
[350238512,1737727832464,-502.44966367,0.00018602,2]
[350238514,1737727832474,-500.0,0.00018602,2]
[350238516,1737727832484,-500.0,0.00018602,2]
[350238518,1737727832493,-500.0,0.00018602,2]
[350238521,1737727832503,-500.0,0.00018602,2]
[350238523,1737727832513,-500.0,0.00018602,2]
[350238524,1737727832522,-500.0,0.00018602,2]
[350238525,1737727832531,-319.19748441,0.00018602,2]
[350238526,1737727832540,-500.0,0.00018602,2]
[350238527,1737727832549,-500.0,0.00018602,2]
[350238528,1737727832558,-500.0,0.00018602,2]
[350238529,1737727832567,-561.80078946,0.00018602,2]
[350238530,1737727832576,-500.0,0.00018602,2]
[350238531,1737727832585,-500.0,0.00018602,2]
[350238532,1737727832594,-500.0,0.00018602,2]
[350238533,1737727832603,-500.0,0.00018602,2]
[350238534,1737727832612,-500.0,0.00018602,2]
[350238535,1737727832621,-500.0,0.00018602,2]
[350238536,1737727832630,-500.0,0.00018602,2]
[350238537,1737727832639,-500.0,0.00018602,2]
[350238538,1737727832648,-500.0,0.00018602,2]
[350238539,1737727832657,-500.0,0.00018602,2]
[350238540,1737727832666,-500.0,0.00018602,2]
[350238541,1737727832675,-500.0,0.00018602,2]
[350238542,1737727832685,-500.0,0.00018602,2]
[350238543,1737727832696,-500.0,0.00018602,2]
[350238544,1737727832706,-500.0,0.00018602,2]
[350238545,1737727832715,-500.0,0.00018602,2]
[350238546,1737727832725,-500.0,0.00018602,2]
[350238547,1737727832734,-500.0,0.00018602,2]
[350238548,1737727832744,-500.0,0.00018602,2]
[350238549,1737727832755,-500.0,0.00018602,2]
[350238550,1737727832764,-500.0,0.00018602,2]
[350238551,1737727832773,-500.0,0.00018602,2]
[350238552,1737727832784,-500.0,0.00018602,2]
[350238553,1737727832793,-500.0,0.00018602,2]
[350238554,1737727832802,-500.0,0.00018602,2]
[350238555,1737727832811,-500.0,0.00018602,2]
[350238556,1737727832821,-500.0,0.00018602,2]
[350238557,1737727832831,-8.4914198,0.00018602,2]
[350238558,1737727832863,-491.5085802,0.00018602,2]
[350238559,1737727832873,-44.5914198,0.00018602,2]
[350238560,1737727832965,-455.4085802,0.00018602,2]
[350238561,1737727832974,-361.65277479,0.00018602,2]
[350238562,1737727832984,-500.0,0.00018602,2]
[350238563,1737727832993,-500.0,0.00018602,2]
[350238564,1737727833003,-640.31968008,0.00018602,2]
[350238565,1737727833012,-363.43176993,0.00018602,2]
[350238566,1737727833037,-139.01368482,0.00018602,2]
[350238567,1737727833047,-500.0,0.00018602,2]
[350238568,1737727833057,-500.0,0.00018602,2]
[350238569,1737727833066,-500.0,0.00018602,2]
[350238570,1737727833076,-500.0,0.00018602,2]
[350238571,1737727833086,-537.50521776,0.00018602,2]
[350238572,1737727833096,-500.0,0.00018602,2]
[350238573,1737727833106,-500.0,0.00018602,2]
[350238574,1737727833116,-500.0,0.00018602,2]
[350238575,1737727833126,-500.0,0.00018602,2]
[350238576,1737727833135,-500.0,0.00018602,2]
[350238577,1737727833145,-500.0,0.00018602,2]
[350238578,1737727833154,-500.0,0.00018602,2]
[350238579,1737727833164,-500.0,0.00018602,2]
[350238580,1737727833174,-500.0,0.00018602,2]
[350238581,1737727833184,-500.0,0.00018602,2]
[350238582,1737727833194,-500.0,0.00018602,2]
[350238583,1737727833203,-500.0,0.00018602,2]
[350238584,1737727833213,-698.81,0.00018602,2]
[350238585,1737727833223,-500.0,0.00018602,2]
[350238586,1737727833232,-500.0,0.00018602,2]
[350238587,1737727833241,-509.27329617,0.00018602,2]
[350238588,1737727833252,-500.0,0.00018602,2]
[350238589,1737727833263,-999.0,0.00018602,2]
[350238590,1737727833273,-999.0,0.00018602,2]
[350238591,1737727833283,-999.0,0.00018602,2]
[350238592,1737727833293,-999.0,0.00018602,2]
[350238593,1737727833303,-999.0,0.00018602,2]
[350238594,1737727833313,-999.0,0.00018602,2]
[350238595,1737727833322,-999.0,0.00018602,2]
[350238596,1737727833332,-999.0,0.00018602,2]
[350238597,1737727833343,-999.0,0.00018602,2]
[350238598,1737727833353,-999.0,0.00018602,2]
[350238599,1737727833365,-552.24,0.00018602,2]
[350238600,1737727833376,-999.0,0.00018602,2]
[350238601,1737727833387,-999.0,0.00018602,2]
[350238602,1737727833399,-999.0,0.00018602,2]
[350238603,1737727833410,-999.0,0.00018602,2]
[350238604,1737727833421,-500.0,0.00018602,2]
[350238605,1737727833432,-999.0,0.00018602,2]
[350238606,1737727833444,-999.0,0.00018602,2]
[350238607,1737727833456,-999.0,0.00018602,2]
[350238608,1737727833469,-999.0,0.00018602,2]
[350238609,1737727833480,-931.15780124,0.00018602,2]
[350238610,1737727833503,-67.84219876,0.00018602,2]
[350238611,1737727833514,-191.15780124,0.00018602,2]
[350238612,1737727833527,-827.84219876,0.00018602,2]
[350238613,1737727833538,-500.0,0.00018602,2]
[350238614,1737727833548,-500.0,0.00018602,2]
[350238615,1737727833558,-500.0,0.00018602,2]
[350238616,1737727833569,-500.0,0.00018602,2]
[350238617,1737727833579,-420.55302124,0.00018602,2]
[350238620,1737727837674,-79.44697876,0.00018602,2]
[350238621,1737727837684,-500.0,0.00018602,2]
[350238622,1737727837850,-469.35302124,0.00018602,2]
[350238623,1737727838003,-30.64697876,0.00018602,2]
[350238624,1737727838012,-504.44071515,0.00018602,2]
[350238625,1737727838032,-152.67928485,0.00018602,2]
[350238626,1737727838041,-500.0,0.00018602,2]
[350238627,1737727838051,-363.97525077,0.00018602,2]
[350238628,1737727838181,-136.02474923,0.00018602,2]
[350238629,1737727838190,-385.95652786,0.00018602,2]
[350238630,1737727838200,-653.7,0.00018602,2]
[350238631,1737727838209,-500.0,0.00018602,2]
[350238632,1737727838219,-500.0,0.00018602,2]
[350238633,1737727838228,-500.0,0.00018602,2]
[350238634,1737727838237,-418.21840016,0.00018602,2]
[350238635,1737727838246,-500.0,0.00018602,2]
[350238636,1737727838257,-500.0,0.00018602,2]
[350238637,1737727838266,-500.0,0.00018602,2]
[350238638,1737727838275,-500.0,0.00018602,2]
[350238639,1737727838284,-500.0,0.00018602,2]
[350238640,1737727838294,-500.0,0.00018602,2]
[350238641,1737727838304,-500.0,0.00018602,2]
[350238642,1737727838313,-500.0,0.00018602,2]
[350238643,1737727838322,-500.0,0.00018602,2]
[350238644,1737727838332,-505.95,0.00018602,2]
[350238645,1737727838341,-500.0,0.00018602,2]
[350238646,1737727838350,-596.83810551,0.00018602,2]
[350238647,1737727838360,-639.86,0.00018602,2]
[350238648,1737727838370,-500.0,0.00018602,2]
[350238649,1737727838380,-744.38,0.00018602,2]
[350238650,1737727838390,-500.0,0.00018602,2]
[350238652,1737727838399,-500.0,0.00018602,2]
[350238653,1737727838409,-604.49,0.00018602,2]
[350238654,1737727838420,-500.0,0.00018602,2]
[350238655,1737727838429,-500.0,0.00018602,2]
[350238656,1737727838439,-500.0,0.00018602,2]
[350238657,1737727838449,-500.0,0.00018602,2]
[350238658,1737727838458,-500.0,0.00018602,2]
[350238659,1737727838468,-500.0,0.00018602,2]
[350238660,1737727838477,-500.0,0.00018602,2]
[350238661,1737727838488,-500.0,0.00018602,2]
[350238662,1737727838498,-908.13,0.00018602,2]
[350238663,1737727838508,-660.26,0.00018602,2]
[350238664,1737727838518,-500.0,0.00018602,2]
[350238665,1737727838527,-500.0,0.00018602,2]
[350238666,1737727838537,-500.0,0.00018602,2]
[350238667,1737727838546,-836.06,0.00018602,2]
[350238668,1737727838555,-762.0,0.00018602,2]
[350238669,1737727838564,-634.48766436,0.00018602,2]
[350238670,1737727838574,-500.0,0.00018602,2]
[350238671,1737727838583,-500.0,0.00018602,2]
[350238672,1737727838592,-500.0,0.00018602,2]
[350238673,1737727838601,-500.0,0.00018602,2]
[350238674,1737727838610,-500.0,0.00018602,2]
[350238675,1737727838619,-500.0,0.00018602,2]
[350238676,1737727838628,-500.0,0.00018602,2]
[350238677,1737727838637,-500.0,0.00018602,2]
[350238678,1737727838647,-1675.75,0.00018602,2]
[350238679,1737727838656,-542.69,0.00018602,2]
[350238680,1737727838665,-500.0,0.00018602,2]
[350238681,1737727838674,-500.0,0.00018602,2]
[350238682,1737727838684,-500.0,0.00018602,2]
[350238683,1737727838694,-500.0,0.00018602,2]
[350238684,1737727838707,-500.0,0.00018602,2]
[350238685,1737727838716,-500.0,0.00018602,2]
[350238686,1737727838725,-500.0,0.00018602,2]
[350238687,1737727838734,-500.0,0.00018602,2]
[350238688,1737727838743,-512.45,0.00018602,2]
[350238689,1737727838754,-500.0,0.00018602,2]
[350238690,1737727838763,-679.36,0.00018602,2]
[350238691,1737727838773,-500.0,0.00018602,2]
[350238692,1737727838783,-500.0,0.00018602,2]
[350238693,1737727838792,-500.0,0.00018602,2]
[350238694,1737727838802,-500.0,0.00018602,2]
[350238695,1737727838811,-500.0,0.00018602,2]
[350238696,1737727838820,-500.0,0.00018602,2]
[350238697,1737727838830,-868.44,0.00018602,2]
[350238698,1737727838839,-500.0,0.00018602,2]
[350238699,1737727838851,-741.95,0.00018602,2]
[350238700,1737727838860,-554.03,0.00018602,2]
[350238701,1737727838869,-500.0,0.00018602,2]
[350238702,1737727838879,-645.41,0.00018615,2]
[350238703,1737727838888,-1202.84461628,0.00018615,2]
[350238706,1737727839928,-714.67538372,0.00018615,2]
[350238707,1737727839937,-957.725306,0.00018615,2]
[350238708,1737727839947,-500.0,0.00018615,2]
[350238709,1737727839957,-500.0,0.00018615,2]
[350238710,1737727839966,-571.07,0.00018615,2]
[350238711,1737727839975,-1151.3,0.00018615,2]
[350238712,1737727839985,-704.476938,0.00018615,2]
[350238713,1737727839994,-867.37,0.00018615,2]
[350238714,1737727840004,-656.69,0.00018615,2]
[350238715,1737727840014,-1430.65,0.00018615,2]
[350238716,1737727840023,-725.37,0.00018615,2]
[350238717,1737727840034,-1992.28,0.00018615,2]
[350238718,1737727840044,-899.3,0.00018615,2]
[350238719,1737727840053,-586.23,0.00018615,2]
[350238720,1737727840062,-500.0,0.00018615,2]
[350238721,1737727840072,-291.09985471,0.00018615,2]
[350238722,1737727840084,-663.05479288,0.00018615,2]
[350238723,1737727840120,-1766.31,0.00018615,2]
[350238724,1737727840132,-346.96535241,0.00018615,2]
[350238725,1737727840141,-662.54390316,0.00018615,2]
[350238726,1737727840170,-837.81609684,0.00018615,2]
[350238727,1737727840180,-879.0,0.00018615,2]
[350238728,1737727840190,-2088.91,0.00018615,2]
[350238729,1737727840200,-834.05,0.00018615,2]
[350238730,1737727840209,-2522.4,0.00018615,2]
[350238731,1737727840219,-500.0,0.00018615,2]
[350238732,1737727840228,-67.705584,0.00018615,2]
[350238733,1737727840240,-331.8624,0.00018615,2]
[350238734,1737727840261,-650.372016,0.00018615,2]
[350238735,1737727840271,-3365.23,0.00018615,2]
[350238736,1737727840280,-1239.397984,0.00018615,2]
[350238755,1737727842745,-245.25,0.00018602,2]
[350238756,1737727842755,-500.0,0.00018602,2]
[350238757,1737727842765,-152.622016,0.00018615,2]
[350238758,1737727842775,-1158.06,0.00018615,2]
[350238760,1737727842786,-500.0,0.00018615,2]
[350238761,1737727842795,-622.43146405,0.00018616,2]
[350238762,1737727842820,-2377.56853595,0.00018616,2]
[350238763,1737727842830,-3146.9742,0.00018638,2]
[350238764,1737727842839,-220.47423488,0.00018646,2]
[350238765,1737727842849,-150.0,0.00018692,2]
[350238766,1737727842859,-150.375,0.00018692,2]
[350238767,1737727842868,-524.293,0.00018692,2]
[350238768,1737727842877,-250.0,0.00018706,2]
[350238769,1737727842886,-283.27,0.00018725,2]
[350238770,1737727842895,-1975.65,0.00018736,2]
[350238771,1737727842904,-747.35,0.00018736,2]
[350238772,1737727842914,-500.0,0.00018736,2]
[350238773,1737727842923,-1157.83,0.00018736,2]
[350238774,1737727842933,-500.0,0.00018736,2]
[350238775,1737727842942,-1016.71,0.00018736,2]
[350238776,1737727842951,-915.62,0.00018736,2]
[350238777,1737727842960,-705.65,0.00018736,2]
[350238778,1737727842969,-911.1,0.00018736,2]
[350238779,1737727842978,-1733.72,0.00018736,2]
[350238780,1737727842987,-500.0,0.00018736,2]
[350238781,1737727842996,-1042.39,0.00018736,2]
[350238782,1737727843005,-2325.3,0.00018736,2]
[350238783,1737727843016,-500.0,0.00018736,2]
[350238784,1737727843026,-1302.96,0.00018736,2]
[350238785,1737727843035,-677.51,0.00018736,2]
[350238786,1737727843044,-815.51,0.00018736,2]
[350238787,1737727843054,-500.0,0.00018736,2]
[350238788,1737727843063,-1184.23,0.00018736,2]
[350238789,1737727843072,-617.09,0.00018736,2]
[350238790,1737727843081,-2868.24,0.00018736,2]
[350238791,1737727843090,-500.45,0.00018736,2]
[350238792,1737727843099,-797.3,0.00018736,2]
[350238793,1737727843109,-595.3,0.00018736,2]
[350238794,1737727843118,-500.0,0.00018736,2]
[350238795,1737727843127,-566.25,0.00018736,2]
[350238796,1737727843136,-500.0,0.00018736,2]
[350238797,1737727843145,-893.1,0.00018736,2]
[350238798,1737727843154,-3028.05,0.00018736,2]
[350238799,1737727843163,-265.18208014,0.00018737,2]
[350238800,1737727843171,-201582.11800551,0.00018737,2]
[350238801,1737727843217,-406.64319904,0.00018737,2]
[350238808,1737727845852,-1093.18,0.00018615,2]
[350238809,1737727845862,-407.27,0.00018736,2]
[350238810,1737727845873,-199.66,0.00018736,2]
[350238811,1737727845882,-1455.29000001,0.00018737,2]
[350238812,1737727846154,-4064.02944366,0.00018737,2]
[350238819,1737727967253,204.44093402,0.00022004,120]
[350238827,1737728708681,2033.66,0.00012,2]
[350238828,1737728708708,51689.02345843,0.00012,2]
[350238830,1737728798337,150.0,0.00012,2]
[350238832,1737728851128,-197.88,0.00012329,2]
[350238833,1737728851151,-550.0,0.00015,2]
[350238834,1737728851175,-264.5,0.00015642,2]
[350238835,1737728851200,-684.15314366,0.00017661,2]
[350238839,1737728950127,-3630.69831957,0.00015,2]
[350238850,1737729031934,-250.0,0.00017493,2]
[350238851,1737729031944,-172.9036109,0.00017519,2]
[350238852,1737729031956,-12846.1363891,0.00017519,2]
[350238853,1737729031965,-315.84685634,0.00017661,2]
[350238854,1737729031975,-1873.92,0.0001768,2]
[350238855,1737729031990,-187.45,0.00017685,2]
[350238856,1737729032000,-240.45,0.00017748,2]
[350238857,1737729032010,-163.57,0.00017807,2]
[350238858,1737729032019,-38.0069826,0.000179,2]
[350238859,1737729032039,-792.4158174,0.000179,2]
[350238860,1737729032049,-264.5,0.00017906,2]
[350238861,1737729032063,-8204.8441826,0.00018,2]
[350238862,1737729032089,-5262.14155109,0.00018,2]
[350238863,1737729032100,-309.331,0.00018024,2]
[350238864,1737729032110,-250.9,0.00018068,2]
[350238865,1737729032121,-247.87,0.00018068,2]
[350238866,1737729032130,-250.46,0.00018068,2]
[350238867,1737729032141,-248.79,0.00018068,2]
[350238868,1737729032151,-251.31,0.00018068,2]
[350238869,1737729032160,-249.52,0.00018068,2]
[350238870,1737729032170,-900.0,0.00018068,2]
[350238871,1737729032180,-500.0,0.00018068,2]
[350238872,1737729032190,-168.44,0.00018082,2]
[350238873,1737729032199,-455.97621487,0.00018326,2]
[350238874,1737729032209,-10377.45194759,0.00018335,2]
[350238875,1737729032221,-1700.0,0.00018335,2]
[350238876,1737729032243,-661.5,0.00018335,2]
[350238877,1737729032278,-2394.41796207,0.00018335,2]
[350238878,1737729032289,-1397.45204275,0.00018335,2]
[350238882,1737729032649,157.58,0.00010137,2]
[350239208,1737729037970,-327.01549661,0.00018335,2]
[350239209,1737729037979,-304.74450339,0.00018336,2]
[350239210,1737729038051,-223.84858208,0.00018336,2]
[350239211,1737729038062,-603.0174379,0.00018338,2]
[350239212,1737729038076,-1120.77027219,0.00018338,2]
[350239213,1737729038087,-529.47807039,0.00018338,2]
[350239214,1737729038099,-682.008783,0.00018338,2]
[350239215,1737729038291,-2996.36598214,0.00018338,2]
[350239216,1737729038301,-200.0,0.00018348,2]
[350239218,1737729038310,-528.59308547,0.00018356,2]
[350239220,1737729038320,-246.14,0.00018362,2]
[350239221,1737729038329,-1127.102449,0.00018362,2]
[350239222,1737729038339,-1136.21934999,0.00018362,2]
[350239223,1737729038348,-267.15226449,0.00018365,2]
[350239224,1737729038357,-16857.83744902,0.00018367,2]
[350239225,1737729038366,-200.0,0.00018371,2]
[350239226,1737729038376,-267.15226449,0.00018377,2]
[350239227,1737729038385,-16857.83744902,0.00018383,2]
[350239228,1737729038394,-455.97621487,0.00018383,2]
[350239229,1737729038404,-267.15226449,0.00018386,2]
[350239230,1737729038413,-455.97621487,0.00018392,2]
[350239231,1737729038422,-267.15226449,0.00018404,2]
[350239232,1737729038432,-528.59308547,0.00018414,2]
[350239233,1737729038441,-5931.64054562,0.00018421,2]
[350239235,1737729038450,-5931.64054562,0.00018431,2]
[350239236,1737729038460,-5931.64054562,0.00018435,2]
[350239237,1737729038469,-455.97621487,0.00018435,2]
[350239238,1737729038478,-5931.64054562,0.00018436,2]
[350239239,1737729038490,-528.59308547,0.00018443,2]
[350239240,1737729038500,-455.97621487,0.00018449,2]
[350239241,1737729038509,-172.245637,0.00018451,2]
[350239242,1737729038518,-528.59308547,0.00018453,2]
[350239243,1737729038527,-16857.83744902,0.00018455,2]
[350239244,1737729038536,-267.15226449,0.0001846,2]
[350239245,1737729038546,-16857.83744902,0.00018462,2]
[350239246,1737729038555,-4554.86404149,0.0001848,2]
[350239247,1737729038564,-406.4745265,0.00018487,2]
[350239248,1737729038574,-3890.31743298,0.000185,2]
[350239249,1737729038584,-999.99,0.00018533,2]
[350239250,1737729038593,-1430.55,0.00018533,2]
[350239251,1737729038603,-150.99,0.00018533,2]
[350239252,1737729038612,-150.99,0.00018533,2]
[350239253,1737729038621,-17017.58,0.00018533,2]
[350239254,1737729038631,-3000.0,0.0001855,2]
[350239255,1737729038640,-423.16,0.00018593,2]
[350239256,1737729038650,-266.075,0.000186,2]
[350239257,1737729038659,-3159.1985,0.000186,2]
[350239258,1737729038668,-176.37938794,0.0001863,2]
[350239259,1737729038677,-1675.8275,0.00018637,2]
[350239260,1737729038687,-774.7837,0.00018637,2]
[350239261,1737729038701,-638.0,0.00018676,2]
[350239262,1737729038710,-733.610195,0.00018699,2]
[350239263,1737729038719,-3059.48,0.00018699,2]
[350239264,1737729038730,-1950.7,0.00018699,2]
[350239265,1737729038742,-917.820085,0.00018699,2]
[350239266,1737729038752,-618.52,0.00018699,2]
[350239267,1737729038761,-582.32,0.00018699,2]
[350239268,1737729038771,-500.0,0.00018699,2]
[350239269,1737729038780,-500.0,0.00018699,2]
[350239270,1737729038790,-884.69,0.00018699,2]
[350239271,1737729038799,-1176.99,0.00018699,2]
[350239272,1737729038809,-1447.9,0.00018699,2]
[350239273,1737729038818,-2061.03,0.00018699,2]
[350239274,1737729038829,-500.0,0.00018699,2]
[350239275,1737729038838,-669.23,0.00018699,2]
[350239276,1737729038847,-500.0,0.00018699,2]
[350239277,1737729038857,-218.88699439,0.00018699,2]
[350239279,1737729039924,-343.48470714,0.00018699,2]
[350239280,1737729039959,-176.62829847,0.00018699,2]
[350239281,1737729039969,-1179.51,0.00018699,2]
[350239282,1737729039978,-760.62,0.00018699,2]
[350239283,1737729039990,-917.63,0.00018699,2]
[350239284,1737729040000,-1037.29,0.00018699,2]
[350239285,1737729040010,-309.5769775,0.00018699,2]
[350239286,1737729040074,-726.109324,0.00018699,2]
[350239287,1737729040176,-473.7550005,0.00018699,2]
[350239288,1737729040189,-1610.548698,0.00018699,2]
[350239289,1737729040199,-500.0,0.00018699,2]
[350239290,1737729040208,-598.19,0.00018699,2]
[350239291,1737729040218,-343.94,0.00018699,2]
[350239292,1737729040228,-500.0,0.00018699,2]
[350239293,1737729040240,-153.67114402,0.00018699,2]
[350239294,1737729040360,-1054.9,0.00017779,2]
[350239295,1737729040370,-567.91885598,0.00018699,2]
[350239296,1737729040380,-932.74,0.00018699,2]
[350239297,1737729040389,-849.28,0.00018699,2]
[350239298,1737729040398,-1772.94,0.00018699,2]
[350239299,1737729040408,-1531.53,0.00018699,2]
[350239300,1737729040417,-924.9,0.00018699,2]
[350239301,1737729040427,-895.09,0.00018699,2]
[350239302,1737729040436,-1012.59403741,0.00018699,2]
[350239303,1737729040448,-51.56596259,0.00018699,2]
[350239304,1737729040458,-501.71,0.00018699,2]
[350239305,1737729040467,-2134.59,0.00018699,2]
[350239306,1737729040477,-500.0,0.00018699,2]
[350239307,1737729040490,-273.57763408,0.00018699,2]
[350239309,1737729040598,-188.50368268,0.00018699,2]
[350239310,1737729040610,-2112.56868324,0.00018699,2]
[350239311,1737729040620,-2343.67,0.00018699,2]
[350239312,1737729040629,-1420.75,0.00018699,2]
[350239313,1737729040639,-1329.74,0.00018699,2]
[350239314,1737729040648,-150.07131676,0.00018699,2]
[350239323,1737729042968,-246.43,0.00018362,2]
[350239324,1737729042979,-538.70868324,0.00018699,2]
[350239325,1737729042990,-828.67,0.00018699,2]
[350239326,1737729043000,-1073.18,0.00018699,2]
[350239327,1737729043009,-500.0,0.00018699,2]
[350239328,1737729043019,-1203.76,0.00018699,2]
[350239329,1737729043028,-3440.71,0.00018699,2]
[350239330,1737729043038,-2916.09,0.00018699,2]
[350239331,1737729043047,-1109.81,0.00018699,2]
[350239332,1737729043057,-500.0,0.00018699,2]
[350239333,1737729043070,-822.34,0.00018699,2]
[350239334,1737729043080,-635.76,0.00018699,2]
[350239335,1737729043089,-577.86,0.00018699,2]
[350239336,1737729043098,-517.41,0.00018699,2]
[350239337,1737729043109,-500.0,0.00018699,2]
[350239338,1737729043119,-500.0,0.00018699,2]
[350239339,1737729043128,-509.53,0.00018699,2]
[350239340,1737729043139,-1860.44,0.00018699,2]
[350239341,1737729043148,-586.41,0.00018699,2]
[350239342,1737729043157,-500.0,0.00018699,2]
[350239343,1737729043167,-905.6,0.00018699,2]
[350239344,1737729043176,-500.0,0.00018699,2]
[350239345,1737729043185,-1349.3,0.00018699,2]
[350239346,1737729043194,-13268.21334562,0.000187,2]
[350239347,1737729043204,-174104.40511845,0.000187,2]
[350239348,1737729043213,-811.8003024,0.00018727,2]
[350239349,1737729043222,-8056.65322241,0.0001873,2]
[350239350,1737729043232,-1006.26165683,0.00018736,5]
[350239351,1737729043243,-500.0,0.00018736,2]
[350239352,1737729043253,-500.0,0.00018736,2]
[350239353,1737729043262,-500.0,0.00018736,2]
[350239354,1737729043271,-500.0,0.00018736,2]
[350239355,1737729043281,-500.0,0.00018736,2]